[Event "FIDE World Rapid Chess Championship 2021"]
[White "Paravyan, David"]
[Black "Michalik, Peter"]
[WhiteFideId "4194985"]
[BlackFideId "14907526"]
[WhiteElo "2671"]
[BlackElo "2515"]
[Result "1/2-1/2"]
[Round "03"]
[TimeControl "900+10"]
[Date "2021.12.26"]
[WhiteClock "0:00:55"]
[BlackClock "0:00:24"]

1. e4 {[%clk 0:15:00]}  e5 {[%clk 0:15:27]} 2. Nf3 {[%clk 0:15:36]}  Nc6 {[%clk 0:15:27]} 3. Nc3 {[%clk 0:15:36]}  Nf6 {[%clk 0:15:27]} 4. d4 {[%clk 0:15:36]}  exd4 {[%clk 0:15:27]} 5. Nxd4 {[%clk 0:15:36]}  Bb4 {[%clk 0:15:27]} 6. Nxc6 {[%clk 0:15:36]}  bxc6 {[%clk 0:15:27]} 7. Bd3 {[%clk 0:15:36]}  O-O {[%clk 0:15:27]} 8. O-O {[%clk 0:15:36]}  d5 {[%clk 0:15:27]} 9. exd5 {[%clk 0:15:36]}  Bg4 {[%clk 0:16:45]} 10. f3 {[%clk 0:17:19]}  Bh5 {[%clk 0:16:45]} 11. dxc6 {[%clk 0:17:19]}  Qd4+ {[%clk 0:16:45]} 12. Kh1 {[%clk 0:17:19]}  Bxc3 {[%clk 0:16:45]} 13. bxc3 {[%clk 0:17:19]}  Qxc3 {[%clk 0:16:45]} 14. Bf4 {[%clk 0:17:19]}  Qxc6 {[%clk 0:16:45]} 15. Qe2 {[%clk 0:17:19]}  Rfe8 {[%clk 0:16:45]} 16. Bb5 {[%clk 0:17:19]}  Rxe2 {[%clk 0:16:45]} 17. Bxc6 {[%clk 0:17:19]}  Rb8 {[%clk 0:16:45]} 18. a4 {[%clk 0:17:35]}  Rxc2 {[%clk 0:15:36]} 19. Rfc1 {[%clk 0:14:47]}  Bg6 {[%clk 0:14:47]} 20. a5 {[%clk 0:13:42]}  Rb4 {[%clk 0:13:05]} 21. Rxc2 {[%clk 0:08:44]}  Bxc2 {[%clk 0:13:05]} 22. Bd2 {[%clk 0:08:44]}  Rd4 {[%clk 0:12:09]} 23. Be3 {[%clk 0:07:29]}  Rd6 {[%clk 0:12:09]} 24. Bb7 {[%clk 0:07:34]}  a6 {[%clk 0:08:23]} 25. Rc1 {[%clk 0:07:34]}  Ba4 {[%clk 0:08:30]} 26. Rxc7 {[%clk 0:05:23]}  h5 {[%clk 0:06:35]} 27. h4 {[%clk 0:05:23]}  Bb5 {[%clk 0:06:35]} 28. Rc5 {[%clk 0:04:25]}  Rd1+ {[%clk 0:06:35]} 29. Kh2 {[%clk 0:04:25]}  Rb1 {[%clk 0:06:02]} 30. Bd4 {[%clk 0:03:59]}  Rb4 {[%clk 0:05:20]} 31. Bf2 {[%clk 0:03:20]}  Rb2 {[%clk 0:05:00]} 32. Kg3 {[%clk 0:01:43]}  Ra2 {[%clk 0:04:52]} 33. Rc8+ {[%clk 0:00:38]}  Kh7 {[%clk 0:04:44]} 34. Rc7 {[%clk 0:00:38]}  Kg6 {[%clk 0:04:51]} 35. Rc5 {[%clk 0:00:13]}  Rxa5 {[%clk 0:04:51]} 36. Bc8 {[%clk 0:00:13]}  Ra3 {[%clk 0:04:51]} 37. Bf5+ {[%clk 0:00:20]}  Kh6 {[%clk 0:03:25]} 38. Bd4 {[%clk 0:00:20]}  g6 {[%clk 0:03:25]} 39. Bc2 {[%clk 0:00:17]}  Ne8 {[%clk 0:02:55]} 40. Re5 {[%clk 0:00:17]}  Ng7 {[%clk 0:02:55]} 41. Bc5 {[%clk 0:00:17]}  Rc3 {[%clk 0:01:51]} 42. Bb1 {[%clk 0:00:12]}  Bd3 {[%clk 0:01:51]} 43. Bxd3 {[%clk 0:00:09]}  Rxd3 {[%clk 0:01:51]} 44. Bf8 {[%clk 0:00:09]}  Rd8 {[%clk 0:01:51]} 45. Bxg7+ {[%clk 0:00:09]}  Kxg7 {[%clk 0:01:51]} 46. Ra5 {[%clk 0:00:09]}  Rd6 {[%clk 0:01:51]} 47. Kf4 {[%clk 0:00:09]}  Rf6+ {[%clk 0:01:51]} 48. Ke4 {[%clk 0:00:09]}  Kf8 {[%clk 0:01:51]} 49. g4 {[%clk 0:00:09]}  hxg4 {[%clk 0:01:51]} 50. fxg4 {[%clk 0:00:09]}  Kg7 {[%clk 0:01:16]} 51. Ke3 {[%clk 0:00:49]}  Rb6 {[%clk 0:01:12]} 52. Kf4 {[%clk 0:00:21]}  Kh6 {[%clk 0:01:12]} 53. Rc5 {[%clk 0:00:21]}  Rb4+ {[%clk 0:01:12]} 54. Kg3 {[%clk 0:00:21]}  Rb3+ {[%clk 0:01:12]} 55. Kf4 {[%clk 0:00:21]}  Ra3 {[%clk 0:01:12]} 56. Rc7 {[%clk 0:00:21]}  Ra4+ {[%clk 0:01:12]} 57. Kg3 {[%clk 0:00:24]}  Kg7 {[%clk 0:00:56]} 58. Ra7 {[%clk 0:00:24]}  a5 {[%clk 0:00:56]} 59. h5 {[%clk 0:00:24]}  Ra1 {[%clk 0:00:56]} 60. hxg6 {[%clk 0:00:24]}  Kxg6 {[%clk 0:00:56]} 61. Ra8 {[%clk 0:00:24]}  a4 {[%clk 0:00:59]} 62. Ra6+ {[%clk 0:00:21]}  Kg7 {[%clk 0:00:59]} 63. Kg2 {[%clk 0:00:21]}  a3 {[%clk 0:00:59]} 64. g5 {[%clk 0:00:21]}  a2 {[%clk 0:00:59]} 65. Kh2 {[%clk 0:00:21]}  Kf8 {[%clk 0:00:59]} 66. Kg2 {[%clk 0:00:21]}  Ke7 {[%clk 0:00:59]} 67. Kh2 {[%clk 0:00:21]}  Kd7 {[%clk 0:00:59]} 68. Kg2 {[%clk 0:00:21]}  Kc7 {[%clk 0:00:59]} 69. g6 {[%clk 0:00:21]}  fxg6 {[%clk 0:00:59]} 70. Ra8 {[%clk 0:00:21]}  Kd7 {[%clk 0:00:24]} 71. Ra6 {[%clk 0:00:55]}  Ke7 {[%clk 0:00:24]} 72. Kh2 {[%clk 0:00:55]}  Kf7 {[%clk 0:00:24]} 73. Kg2 {[%clk 0:00:55]}  Kg7 {[%clk 0:00:24]} 74. Kh2 {[%clk 0:00:55]}  Kh6 {[%clk 0:00:24]} 75. Ra5 {[%clk 0:00:55]}  g5 {[%clk 0:00:24]} 76. Kg2 {[%clk 0:00:55]}  Kh5 {[%clk 0:00:24]} 77. Ra4 {[%clk 0:00:55]} 1/2-1/2


[Site "http://www.Chess.com"]

[Event "FIDE World Rapid Chess Championship 2021"]
[White "Vastrukhin, Oleg"]
[Black "Movsesian, Sergei"]
[WhiteFideId "4192770"]
[BlackFideId "310204"]
[WhiteElo "2382"]
[BlackElo "2667"]
[Result "1/2-1/2"]
[Round "03"]
[TimeControl "900+10"]
[Date "2021.12.26"]
[WhiteClock "0:06:54"]
[BlackClock "0:05:31"]

1. Nf3 {[%clk 0:15:17]}  d5 {[%clk 0:15:00]} 2. g3 {[%clk 0:15:17]}  c6 {[%clk 0:15:00]} 3. Bg2 {[%clk 0:15:17]}  Bg4 {[%clk 0:15:00]} 4. Ne5 {[%clk 0:15:17]}  Bh5 {[%clk 0:15:11]} 5. d4 {[%clk 0:15:45]}  Nd7 {[%clk 0:15:11]} 6. O-O {[%clk 0:15:45]}  e6 {[%clk 0:15:11]} 7. c4 {[%clk 0:15:45]}  Ngf6 {[%clk 0:15:06]} 8. Nc3 {[%clk 0:15:42]}  Be7 {[%clk 0:15:06]} 9. Qb3 {[%clk 0:15:42]}  Qb6 {[%clk 0:15:06]} 10. Nxd7 {[%clk 0:15:42]}  Nxd7 {[%clk 0:15:06]} 11. e4 {[%clk 0:15:42]}  dxe4 {[%clk 0:13:38]} 12. Nxe4 {[%clk 0:16:08]}  O-O {[%clk 0:13:38]} 13. Be3 {[%clk 0:16:08]}  Rfd8 {[%clk 0:13:17]} 14. h3 {[%clk 0:16:21]}  Nf6 {[%clk 0:13:17]} 15. Nc5 {[%clk 0:16:21]}  Bxc5 {[%clk 0:11:59]} 16. dxc5 {[%clk 0:16:16]}  Qc7 {[%clk 0:11:59]} 17. Qc3 {[%clk 0:16:16]}  e5 {[%clk 0:11:59]} 18. b4 {[%clk 0:15:51]}  h6 {[%clk 0:11:11]} 19. a4 {[%clk 0:15:08]}  Bg6 {[%clk 0:09:54]} 20. Rfd1 {[%clk 0:13:40]}  Ne4 {[%clk 0:08:08]} 21. Qb2 {[%clk 0:12:42]}  f5 {[%clk 0:08:08]} 22. f4 {[%clk 0:12:17]}  Rxd1+ {[%clk 0:08:14]} 23. Rxd1 {[%clk 0:12:17]}  Rd8 {[%clk 0:08:14]} 24. Rxd8+ {[%clk 0:09:46]}  Qxd8 {[%clk 0:07:22]} 25. Qxe5 {[%clk 0:08:38]}  Qd1+ {[%clk 0:07:31]} 26. Kh2 {[%clk 0:08:27]}  Qe1 {[%clk 0:07:31]} 27. Bxe4 {[%clk 0:08:26]}  fxe4 {[%clk 0:06:10]} 28. Bd4 {[%clk 0:08:26]}  Qe2+ {[%clk 0:06:10]} 29. Kg1 {[%clk 0:08:26]}  Qd1+ {[%clk 0:06:08]} 30. Kh2 {[%clk 0:06:54]}  Qe2+ {[%clk 0:05:31]} 31. Kg1 {[%clk 0:06:54]} 1/2-1/2


[Site "http://www.Chess.com"]

[Event "FIDE World Rapid Chess Championship 2021"]
[White "Firouzja, Alireza"]
[Black "Jakubowski, Krzysztof"]
[WhiteFideId "12573981"]
[BlackFideId "1112848"]
[WhiteElo "2656"]
[BlackElo "2399"]
[Result "1-0"]
[Round "03"]
[TimeControl "900+10"]
[Date "2021.12.26"]
[WhiteClock "0:00:50"]
[BlackClock "0:00:15"]

1. d4 {[%clk 0:15:00]}  d5 {[%clk 0:15:17]} 2. Nf3 {[%clk 0:15:18]}  Nf6 {[%clk 0:15:17]} 3. Bf4 {[%clk 0:15:18]}  e6 {[%clk 0:14:49]} 4. e3 {[%clk 0:15:23]}  Bd6 {[%clk 0:14:49]} 5. Bg3 {[%clk 0:15:23]}  b6 {[%clk 0:14:53]} 6. c3 {[%clk 0:14:40]}  O-O {[%clk 0:13:32]} 7. Nbd2 {[%clk 0:13:06]}  Bb7 {[%clk 0:13:32]} 8. Bd3 {[%clk 0:13:06]}  Ne4 {[%clk 0:13:32]} 9. Qc2 {[%clk 0:12:53]}  f5 {[%clk 0:11:31]} 10. O-O {[%clk 0:12:53]}  Nd7 {[%clk 0:11:36]} 11. c4 {[%clk 0:10:07]}  Nxg3 {[%clk 0:11:36]} 12. hxg3 {[%clk 0:10:07]}  c6 {[%clk 0:11:36]} 13. Rac1 {[%clk 0:10:13]}  Qe7 {[%clk 0:11:05]} 14. Qa4 {[%clk 0:09:44]}  a6 {[%clk 0:10:03]} 15. Qb3 {[%clk 0:08:42]}  Rab8 {[%clk 0:10:03]} 16. cxd5 {[%clk 0:08:42]}  cxd5 {[%clk 0:09:36]} 17. a4 {[%clk 0:07:55]}  g5 {[%clk 0:09:35]} 18. Nb1 {[%clk 0:08:01]}  g4 {[%clk 0:08:34]} 19. Nh4 {[%clk 0:06:34]}  Qg5 {[%clk 0:08:34]} 20. Rfe1 {[%clk 0:06:43]}  Rfc8 {[%clk 0:06:54]} 21. Nc3 {[%clk 0:05:39]}  Qd8 {[%clk 0:04:42]} 22. e4 {[%clk 0:05:44]}  fxe4 {[%clk 0:02:40]} 23. Bxe4 {[%clk 0:01:50]}  Qf6 {[%clk 0:02:40]} 24. Bb1 {[%clk 0:01:50]}  Rc4 {[%clk 0:02:01]} 25. Ne4 {[%clk 0:02:06]}  Qh6 {[%clk 0:02:01]} 26. Rxc4 {[%clk 0:02:04]}  dxc4 {[%clk 0:01:00]} 27. Qxc4 {[%clk 0:02:04]}  Bd5 {[%clk 0:01:00]} 28. Qe2 {[%clk 0:02:04]}  Bb4 {[%clk 0:01:00]} 29. Qxg4+ {[%clk 0:02:04]}  Kh8 {[%clk 0:01:00]} 30. Rf1 {[%clk 0:02:21]}  Rf8 {[%clk 0:01:01]} 31. Qe2 {[%clk 0:02:21]}  Rg8 {[%clk 0:00:31]} 32. Qxa6 {[%clk 0:01:12]}  Nf6 {[%clk 0:00:15]} 33. Qe2 {[%clk 0:00:50]}  Nh5 {[%clk 0:00:15]} 34. Nc3 {[%clk 0:00:50]} 1-0


[Site "http://www.Chess.com"]

[Event "FIDE World Rapid Chess Championship 2021"]
[White "Niemann, Hans Moke"]
[Black "Matlakov, Maxim"]
[WhiteFideId "2093596"]
[BlackFideId "4168003"]
[WhiteElo "2327"]
[BlackElo "2652"]
[Result "1/2-1/2"]
[Round "03"]
[TimeControl "900+10"]
[Date "2021.12.26"]
[WhiteClock "0:13:56"]
[BlackClock "0:07:51"]

1. e4 {[%clk 0:15:00]}  e5 {[%clk 0:15:27]} 2. Nf3 {[%clk 0:15:25]}  Nc6 {[%clk 0:15:27]} 3. Bb5 {[%clk 0:15:25]}  a6 {[%clk 0:15:27]} 4. Ba4 {[%clk 0:15:25]}  Nf6 {[%clk 0:15:27]} 5. O-O {[%clk 0:15:25]}  Nxe4 {[%clk 0:15:27]} 6. d4 {[%clk 0:15:25]}  b5 {[%clk 0:16:19]} 7. Bb3 {[%clk 0:16:11]}  d5 {[%clk 0:16:19]} 8. dxe5 {[%clk 0:16:11]}  Be6 {[%clk 0:16:19]} 9. c3 {[%clk 0:16:11]}  Be7 {[%clk 0:16:19]} 10. Nbd2 {[%clk 0:16:11]}  O-O {[%clk 0:16:19]} 11. Bc2 {[%clk 0:16:11]}  f5 {[%clk 0:16:19]} 12. Nb3 {[%clk 0:16:11]}  Qd7 {[%clk 0:16:19]} 13. Nbd4 {[%clk 0:16:11]}  Nxd4 {[%clk 0:16:19]} 14. Nxd4 {[%clk 0:16:11]}  c5 {[%clk 0:16:19]} 15. Nxe6 {[%clk 0:16:11]}  Qxe6 {[%clk 0:16:19]} 16. f3 {[%clk 0:16:11]}  Ng5 {[%clk 0:16:19]} 17. Re1 {[%clk 0:16:11]}  Rad8 {[%clk 0:16:42]} 18. Be3 {[%clk 0:16:21]}  Qc6 {[%clk 0:15:49]} 19. a4 {[%clk 0:16:22]}  Ne6 {[%clk 0:15:49]} 20. axb5 {[%clk 0:16:22]}  axb5 {[%clk 0:15:49]} 21. Bf2 {[%clk 0:16:34]}  c4 {[%clk 0:13:32]} 22. Qd2 {[%clk 0:16:34]}  d4 {[%clk 0:13:22]} 23. cxd4 {[%clk 0:15:31]}  Nxd4 {[%clk 0:13:22]} 24. Bxd4 {[%clk 0:15:31]}  Rxd4 {[%clk 0:13:22]} 25. Qe2 {[%clk 0:15:31]}  g6 {[%clk 0:12:37]} 26. Kh1 {[%clk 0:15:53]}  Rfd8 {[%clk 0:12:37]} 27. Rad1 {[%clk 0:15:53]}  b4 {[%clk 0:12:14]} 28. Rxd4 {[%clk 0:15:38]}  Rxd4 {[%clk 0:09:49]} 29. b3 {[%clk 0:15:38]}  c3 {[%clk 0:09:49]} 30. Rd1 {[%clk 0:15:38]}  Qd5 {[%clk 0:09:59]} 31. Rxd4 {[%clk 0:14:15]}  Qxd4 {[%clk 0:09:59]} 32. g3 {[%clk 0:14:15]}  Kg7 {[%clk 0:09:38]} 33. f4 {[%clk 0:13:52]}  Bc5 {[%clk 0:09:01]} 34. Kg2 {[%clk 0:13:56]}  h5 {[%clk 0:09:01]} 35. Kh3 {[%clk 0:13:56]}  Qd2 {[%clk 0:07:51]} 1/2-1/2


[Site "http://www.Chess.com"]

[Event "FIDE World Rapid Chess Championship 2021"]
[White "Kosakowski, Jakub"]
[Black "Anton Guijarro, David"]
[WhiteFideId "1185080"]
[BlackFideId "2285525"]
[WhiteElo "2304"]
[BlackElo "2627"]
[Result "1/2-1/2"]
[Round "03"]
[TimeControl "900+10"]
[Date "2021.12.26"]
[WhiteClock "0:00:39"]
[BlackClock "0:00:18"]

1. e4 {[%clk 0:15:16]}  c6 {[%clk 0:15:16]} 2. d4 {[%clk 0:15:16]}  d5 {[%clk 0:15:16]} 3. Nc3 {[%clk 0:15:16]}  dxe4 {[%clk 0:15:29]} 4. Nxe4 {[%clk 0:15:17]}  Nf6 {[%clk 0:15:29]} 5. Qd3 {[%clk 0:15:17]}  Nbd7 {[%clk 0:15:29]} 6. Nf3 {[%clk 0:15:17]}  Nxe4 {[%clk 0:14:11]} 7. Qxe4 {[%clk 0:15:17]}  Nf6 {[%clk 0:14:11]} 8. Qd3 {[%clk 0:14:36]}  g6 {[%clk 0:14:12]} 9. Be2 {[%clk 0:13:13]}  Bg7 {[%clk 0:14:12]} 10. O-O {[%clk 0:13:13]}  O-O {[%clk 0:14:12]} 11. Re1 {[%clk 0:13:09]}  a5 {[%clk 0:12:17]} 12. Bf1 {[%clk 0:13:09]}  Bf5 {[%clk 0:12:14]} 13. Qb3 {[%clk 0:12:04]}  Qc7 {[%clk 0:12:14]} 14. a4 {[%clk 0:11:14]}  Nd5 {[%clk 0:11:26]} 15. Bg5 {[%clk 0:11:18]}  Bf6 {[%clk 0:10:33]} 16. Bd2 {[%clk 0:10:48]}  Nb4 {[%clk 0:08:57]} 17. Bxb4 {[%clk 0:07:39]}  axb4 {[%clk 0:07:04]} 18. Bd3 {[%clk 0:07:39]}  Bxd3 {[%clk 0:07:04]} 19. Qxd3 {[%clk 0:07:39]}  c5 {[%clk 0:07:04]} 20. Qc4 {[%clk 0:06:36]}  Rfc8 {[%clk 0:06:57]} 21. Ne5 {[%clk 0:04:42]}  cxd4 {[%clk 0:06:02]} 22. Qxf7+ {[%clk 0:02:08]}  Kh8 {[%clk 0:06:02]} 23. Ng4 {[%clk 0:02:08]}  Qc4 {[%clk 0:06:02]} 24. Rxe7 {[%clk 0:01:55]}  Bxe7 {[%clk 0:03:17]} 25. Qxe7 {[%clk 0:00:54]}  Qc7 {[%clk 0:03:17]} 26. Qxb4 {[%clk 0:00:54]}  Qg7 {[%clk 0:02:09]} 27. h3 {[%clk 0:00:33]}  Rxc2 {[%clk 0:01:51]} 28. Re1 {[%clk 0:00:33]}  Rc7 {[%clk 0:01:51]} 29. Qd6 {[%clk 0:00:33]}  Rd7 {[%clk 0:01:51]} 30. Qe6 {[%clk 0:00:33]}  Rf8 {[%clk 0:01:51]} 31. Ne5 {[%clk 0:00:31]}  Rdd8 {[%clk 0:01:13]} 32. Nd3 {[%clk 0:00:31]}  Qf7 {[%clk 0:01:13]} 33. Qe5+ {[%clk 0:00:31]}  Kg8 {[%clk 0:01:13]} 34. Qc5 {[%clk 0:00:42]}  Qd5 {[%clk 0:01:04]} 35. Qc7 {[%clk 0:00:42]}  Rde8 {[%clk 0:01:04]} 36. Re7 {[%clk 0:00:42]}  Rxe7 {[%clk 0:01:04]} 37. Qxe7 {[%clk 0:00:42]}  Qf5 {[%clk 0:01:04]} 38. Qa3 {[%clk 0:00:42]}  Qe4 {[%clk 0:01:04]} 39. a5 {[%clk 0:00:35]}  Rf7 {[%clk 0:00:45]} 40. Qb3 {[%clk 0:00:35]}  Kg7 {[%clk 0:00:45]} 41. Qc4 {[%clk 0:00:35]}  Rf5 {[%clk 0:00:26]} 42. a6 {[%clk 0:00:40]}  bxa6 {[%clk 0:00:26]} 43. Qxa6 {[%clk 0:00:40]}  Rg5 {[%clk 0:00:26]} 44. g3 {[%clk 0:00:40]}  Rf5 {[%clk 0:00:26]} 45. Nf4 {[%clk 0:00:40]}  Qb1+ {[%clk 0:00:26]} 46. Kg2 {[%clk 0:00:40]}  Qxb2 {[%clk 0:00:34]} 47. Qa7+ {[%clk 0:00:18]}  Kh6 {[%clk 0:00:34]} 48. Qe7 {[%clk 0:00:18]}  Qb5 {[%clk 0:00:34]} 49. Qh4+ {[%clk 0:00:18]}  Kg7 {[%clk 0:00:18]} 50. Qe7+ {[%clk 0:00:39]}  Kh6 {[%clk 0:00:18]} 51. Qh4+ {[%clk 0:00:39]}  Kg7 {[%clk 0:00:18]} 52. Qe7+ {[%clk 0:00:39]}  Kh6 {[%clk 0:00:18]} 53. Qh4+ {[%clk 0:00:39]}  Kg7 {[%clk 0:00:18]} 54. Qe7+ {[%clk 0:00:39]} 1/2-1/2


[Site "http://www.Chess.com"]

[Event "FIDE World Rapid Chess Championship 2021"]
[White "Cheparinov, Ivan"]
[Black "Petrovskyi, Vadym"]
[WhiteFideId "2905540"]
[BlackFideId "14165210"]
[WhiteElo "2621"]
[BlackElo "2282"]
[Result "1-0"]
[Round "03"]
[TimeControl "900+10"]
[Date "2021.12.26"]
[WhiteClock "0:07:18"]
[BlackClock "0:00:45"]

1. d4 {[%clk 0:15:01]}  Nf6 {[%clk 0:15:26]} 2. c4 {[%clk 0:15:01]}  g6 {[%clk 0:15:26]} 3. Nc3 {[%clk 0:15:01]}  Bg7 {[%clk 0:15:26]} 4. e4 {[%clk 0:15:01]}  d6 {[%clk 0:15:26]} 5. Nf3 {[%clk 0:15:01]}  O-O {[%clk 0:15:26]} 6. Be2 {[%clk 0:15:01]}  e5 {[%clk 0:15:26]} 7. O-O {[%clk 0:15:01]}  Nc6 {[%clk 0:15:26]} 8. d5 {[%clk 0:15:01]}  Ne7 {[%clk 0:15:26]} 9. b4 {[%clk 0:15:01]}  a5 {[%clk 0:15:26]} 10. bxa5 {[%clk 0:15:01]}  Rxa5 {[%clk 0:15:26]} 11. a4 {[%clk 0:15:01]}  b6 {[%clk 0:15:26]} 12. Nd2 {[%clk 0:15:01]}  Ne8 {[%clk 0:16:31]} 13. Nb3 {[%clk 0:15:17]}  Ra8 {[%clk 0:16:31]} 14. a5 {[%clk 0:14:45]}  bxa5 {[%clk 0:16:11]} 15. Nxa5 {[%clk 0:14:45]}  Bd7 {[%clk 0:16:11]} 16. c5 {[%clk 0:14:45]}  dxc5 {[%clk 0:16:11]} 17. Nb7 {[%clk 0:14:45]}  Qc8 {[%clk 0:15:49]} 18. Rxa8 {[%clk 0:14:45]}  Qxa8 {[%clk 0:15:49]} 19. Nxc5 {[%clk 0:14:45]}  Bc8 {[%clk 0:15:49]} 20. Bg5 {[%clk 0:14:45]}  f6 {[%clk 0:11:00]} 21. Be3 {[%clk 0:14:58]}  Nd6 {[%clk 0:11:00]} 22. Qa1 {[%clk 0:14:58]}  Qxa1 {[%clk 0:09:57]} 23. Rxa1 {[%clk 0:14:58]}  c6 {[%clk 0:09:37]} 24. Ne6 {[%clk 0:13:52]}  cxd5 {[%clk 0:09:01]} 25. Nxf8 {[%clk 0:13:44]}  d4 {[%clk 0:09:01]} 26. Nb5 {[%clk 0:12:37]}  Nxb5 {[%clk 0:08:59]} 27. Bxb5 {[%clk 0:11:49]}  dxe3 {[%clk 0:08:59]} 28. Nd7 {[%clk 0:11:49]}  exf2+ {[%clk 0:08:59]} 29. Kxf2 {[%clk 0:11:49]}  Bxd7 {[%clk 0:07:49]} 30. Bxd7 {[%clk 0:12:13]}  Kf7 {[%clk 0:07:49]} 31. g4 {[%clk 0:12:13]}  Bf8 {[%clk 0:07:49]} 32. Ra6 {[%clk 0:12:13]}  Bh6 {[%clk 0:05:27]} 33. h4 {[%clk 0:12:06]}  Bd2 {[%clk 0:04:51]} 34. h5 {[%clk 0:11:59]}  Bg5 {[%clk 0:04:51]} 35. Kf3 {[%clk 0:11:59]}  Kg7 {[%clk 0:04:51]} 36. Ra7 {[%clk 0:11:59]}  Kf8 {[%clk 0:04:51]} 37. Ra6 {[%clk 0:11:59]}  Kg7 {[%clk 0:04:44]} 38. Be6 {[%clk 0:11:56]}  Kf8 {[%clk 0:04:44]} 39. Ke2 {[%clk 0:11:56]}  Kg7 {[%clk 0:04:44]} 40. Kf2 {[%clk 0:11:56]}  Kh6 {[%clk 0:04:44]} 41. Ra7 {[%clk 0:11:48]}  f5 {[%clk 0:04:42]} 42. hxg6 {[%clk 0:11:07]}  fxe4 {[%clk 0:03:15]} 43. gxh7 {[%clk 0:11:07]}  e3+ {[%clk 0:03:15]} 44. Kf3 {[%clk 0:11:07]}  Kxh7 {[%clk 0:03:15]} 45. Bc4 {[%clk 0:10:00]}  Kg7 {[%clk 0:02:41]} 46. Ke4 {[%clk 0:09:32]}  Kf6 {[%clk 0:02:41]} 47. Ra6+ {[%clk 0:09:32]}  Kg7 {[%clk 0:02:41]} 48. Kxe5 {[%clk 0:09:32]}  Kh7 {[%clk 0:02:41]} 49. Ke6 {[%clk 0:09:18]}  Kg7 {[%clk 0:00:56]} 50. Ra7 {[%clk 0:09:18]}  Kf8 {[%clk 0:00:56]} 51. Ra5 {[%clk 0:09:18]}  Bh4 {[%clk 0:00:56]} 52. Re5 {[%clk 0:07:18]}  Nc6 {[%clk 0:00:45]} 53. Rxe3 {[%clk 0:07:18]}  Bg5 {[%clk 0:00:45]} 54. Rd3 {[%clk 0:07:18]} 1-0


[Site "http://www.Chess.com"]

[Event "FIDE World Rapid Chess Championship 2021"]
[White "Samunenkov, Ihor"]
[Black "Vachier-Lagrave, Maxime"]
[WhiteFideId "14187086"]
[BlackFideId "623539"]
[WhiteElo "2259"]
[BlackElo "2773"]
[Result "0-1"]
[Round "03"]
[TimeControl "900+10"]
[Date "2021.12.26"]
[WhiteClock "0:00:11"]
[BlackClock "0:05:03"]

1. d4 {[%clk 0:15:00]}  Nf6 {[%clk 0:15:14]} 2. g3 {[%clk 0:15:18]}  d5 {[%clk 0:14:51]} 3. Nf3 {[%clk 0:15:31]}  c6 {[%clk 0:14:51]} 4. c4 {[%clk 0:15:31]}  dxc4 {[%clk 0:14:51]} 5. Bg2 {[%clk 0:15:31]}  Nbd7 {[%clk 0:14:51]} 6. O-O {[%clk 0:15:31]}  g6 {[%clk 0:14:52]} 7. a4 {[%clk 0:13:28]}  a5 {[%clk 0:14:31]} 8. Qc2 {[%clk 0:13:28]}  Nb6 {[%clk 0:14:31]} 9. e4 {[%clk 0:13:28]}  Bg7 {[%clk 0:14:31]} 10. h3 {[%clk 0:12:21]}  O-O {[%clk 0:14:40]} 11. Be3 {[%clk 0:12:21]}  h6 {[%clk 0:14:40]} 12. Na3 {[%clk 0:11:27]}  Be6 {[%clk 0:14:12]} 13. Ne5 {[%clk 0:09:48]}  Ne8 {[%clk 0:14:09]} 14. Naxc4 {[%clk 0:09:49]}  Nxc4 {[%clk 0:14:09]} 15. Nxc4 {[%clk 0:09:49]}  Nd6 {[%clk 0:12:53]} 16. Ne5 {[%clk 0:09:11]}  Kh7 {[%clk 0:12:53]} 17. f4 {[%clk 0:09:11]}  f5 {[%clk 0:12:53]} 18. exf5 {[%clk 0:08:24]}  Bxf5 {[%clk 0:12:48]} 19. Qb3 {[%clk 0:07:21]}  Rf6 {[%clk 0:12:38]} 20. d5 {[%clk 0:07:04]}  cxd5 {[%clk 0:11:23]} 21. Qxd5 {[%clk 0:07:04]}  Be6 {[%clk 0:11:23]} 22. Qf3 {[%clk 0:05:54]}  Rc8 {[%clk 0:11:10]} 23. Rac1 {[%clk 0:05:54]}  Rf8 {[%clk 0:10:48]} 24. Qe2 {[%clk 0:05:01]}  Bxe5 {[%clk 0:10:14]} 25. Rxc8 {[%clk 0:04:13]}  Qxc8 {[%clk 0:09:14]} 26. fxe5 {[%clk 0:04:09]}  Rxf1+ {[%clk 0:09:14]} 27. Qxf1 {[%clk 0:04:09]}  Nc4 {[%clk 0:09:14]} 28. Qf4 {[%clk 0:04:09]}  g5 {[%clk 0:08:43]} 29. Qf3 {[%clk 0:02:10]}  Nxe3 {[%clk 0:06:27]} 30. Qxe3 {[%clk 0:02:10]}  Kg7 {[%clk 0:06:27]} 31. Kh2 {[%clk 0:02:10]}  Qc2 {[%clk 0:06:28]} 32. Qd4 {[%clk 0:01:05]}  b6 {[%clk 0:06:28]} 33. h4 {[%clk 0:01:09]}  Qc5 {[%clk 0:05:54]} 34. Qxc5 {[%clk 0:01:09]}  bxc5 {[%clk 0:05:54]} 35. hxg5 {[%clk 0:01:09]}  hxg5 {[%clk 0:05:54]} 36. Bc6 {[%clk 0:00:35]}  Kg6 {[%clk 0:05:46]} 37. Be4+ {[%clk 0:00:35]}  Bf5 {[%clk 0:05:46]} 38. Bc6 {[%clk 0:00:35]}  Kf7 {[%clk 0:05:47]} 39. Bd5+ {[%clk 0:00:32]}  Be6 {[%clk 0:05:47]} 40. Bc6 {[%clk 0:00:32]}  Bc8 {[%clk 0:05:47]} 41. Bd5+ {[%clk 0:00:32]}  Kg6 {[%clk 0:05:47]} 42. Be4+ {[%clk 0:00:32]}  Bf5 {[%clk 0:05:47]} 43. Bc6 {[%clk 0:00:32]}  g4 {[%clk 0:05:47]} 44. Kg1 {[%clk 0:00:32]}  Bc2 {[%clk 0:05:47]} 45. Bd7 {[%clk 0:00:41]}  Kg5 {[%clk 0:06:00]} 46. Kf2 {[%clk 0:00:41]}  Bb3 {[%clk 0:06:00]} 47. Ke3 {[%clk 0:00:41]}  e6 {[%clk 0:06:00]} 48. Bc6 {[%clk 0:00:12]}  Kf5 {[%clk 0:06:17]} 49. Bb5 {[%clk 0:00:12]}  Kxe5 {[%clk 0:06:17]} 50. Bc6 {[%clk 0:00:12]}  Bd5 {[%clk 0:06:17]} 51. Bb5 {[%clk 0:00:12]}  Bf3 {[%clk 0:06:17]} 52. Bc4 {[%clk 0:00:12]}  Bc6 {[%clk 0:06:17]} 53. Bb3 {[%clk 0:00:18]}  Bf3 {[%clk 0:05:34]} 54. Bc4 {[%clk 0:00:18]}  Kf6 {[%clk 0:05:34]} 55. Bb5 {[%clk 0:00:18]}  e5 {[%clk 0:05:34]} 56. Kd3 {[%clk 0:00:14]}  Ke6 {[%clk 0:05:35]} 57. Bc4+ {[%clk 0:00:14]}  Bd5 {[%clk 0:05:35]} 58. Bb5 {[%clk 0:00:14]}  Kd6 {[%clk 0:05:35]} 59. Ke3 {[%clk 0:00:14]}  c4 {[%clk 0:05:35]} 60. Kd2 {[%clk 0:00:14]}  Be6 {[%clk 0:05:35]} 61. Kc3 {[%clk 0:00:14]}  Kc5 {[%clk 0:05:35]} 62. Be8 {[%clk 0:00:14]}  e4 {[%clk 0:05:35]} 63. Bg6 {[%clk 0:00:08]}  e3 {[%clk 0:06:05]} 64. Be4 {[%clk 0:00:08]}  Bd5 {[%clk 0:06:05]} 65. Bf5 {[%clk 0:00:08]}  Bf3 {[%clk 0:06:05]} 66. Be6 {[%clk 0:00:08]}  Bd1 {[%clk 0:06:27]} 67. Bd7 {[%clk 0:00:19]}  e2 {[%clk 0:06:27]} 68. Kd2 {[%clk 0:00:19]}  Kb4 {[%clk 0:06:27]} 69. Ke1 {[%clk 0:00:11]}  Kb3 {[%clk 0:04:54]} 70. Be6 {[%clk 0:00:11]}  Kxb2 {[%clk 0:05:03]} 71. Bxc4 {[%clk 0:00:11]}  Bxa4 {[%clk 0:05:03]} 72. Be6 {[%clk 0:00:11]}  Bb3 {[%clk 0:05:03]} 73. Bxg4 {[%clk 0:00:11]}  a4 {[%clk 0:05:03]} 0-1


[Site "http://www.Chess.com"]